fUSD/lending_fUSD_20240615
["ID","MTS","AMOUNT","RATE_DAILY","PERIOD"]
[329580742,1718458238025,-330.85478834,0.00022364,2]
[329580743,1718458238038,-294.0,0.0002243,4]
[329580744,1718458238050,-500.0,0.00022463,3]
[329580745,1718458238063,-597.61,0.00022463,3]
[329580746,1718458238092,-500.0,0.00022463,3]
[329580747,1718458238114,-2003.96,0.00022463,3]
[329580748,1718458238131,-500.0,0.00022463,3]
[329580749,1718458238155,-500.0,0.00022463,3]
[329580750,1718458238168,-500.0,0.00022463,3]
[329580751,1718458238184,-500.0,0.00022463,3]
[329580752,1718458238197,-473.5,0.00022463,3]
[329580753,1718458238212,-500.0,0.00022463,3]
[329580754,1718458238236,-500.0,0.00022464,3]
[329580755,1718458238247,-500.0,0.00022464,3]
[329580756,1718458238258,-500.0,0.00022464,3]
[329580757,1718458238270,-500.0,0.00022464,3]
[329580758,1718458238281,-500.0,0.00022464,3]
[329580759,1718458238293,-500.0,0.00022464,3]
[329580760,1718458238306,-500.0,0.00022464,3]
[329580761,1718458238318,-500.0,0.00022464,3]
[329580762,1718458238330,-500.0,0.00022464,3]
[329580763,1718458238360,-500.0,0.00022464,3]
[329580764,1718458238373,-500.0,0.00022464,3]
[329580765,1718458238385,-500.0,0.00022464,3]
[329580766,1718458238401,-500.0,0.00022464,3]
[329580767,1718458238433,-500.0,0.00022464,3]
[329580768,1718458238448,-500.0,0.00022464,3]
[329580769,1718458238476,-500.0,0.00022464,3]
[329580770,1718458238487,-500.0,0.00022464,3]
[329580771,1718458238499,-500.0,0.00022464,3]
[329580772,1718458238521,-500.0,0.00022464,3]
[329580773,1718458238538,-500.0,0.00022464,3]
[329580774,1718458238556,-500.0,0.00022464,3]
[329580775,1718458238580,-500.0,0.00022464,3]
[329580776,1718458238599,-500.0,0.00022464,3]
[329580777,1718458238612,-500.0,0.00022464,3]
[329580778,1718458238626,-500.0,0.00022464,3]
[329580779,1718458238647,-500.0,0.00022464,3]
[329580780,1718458238669,-196.29,0.00022464,3]
[329580781,1718458238693,-500.0,0.00022464,3]
[329580782,1718458238712,-500.0,0.00022464,3]
[329580783,1718458238726,-500.0,0.00022464,3]
[329580784,1718458238744,-500.0,0.00022464,3]
[329580785,1718458238762,-500.0,0.00022464,3]
[329580786,1718458238782,-500.0,0.00022464,3]
[329580787,1718458238800,-500.0,0.00022464,3]
[329580791,1718458238844,-500.0,0.00022464,3]
[329580792,1718458238918,-500.0,0.00022464,3]
[329580793,1718458238930,-500.0,0.00022464,3]
[329580794,1718458238951,-262.30590098,0.00022464,3]
[329580795,1718458238991,-500.0,0.00022464,3]
[329580796,1718458239005,-500.0,0.00022464,3]
[329580797,1718458239035,-500.0,0.00022464,3]
[329580798,1718458239091,-500.0,0.00022464,3]
[329580799,1718458239106,-150.0,0.00022464,3]
[329580800,1718458239180,-590.09947488,0.00022464,3]
[329580801,1718458239197,-500.0,0.00022464,3]
[329580802,1718458239214,-500.0,0.00022464,3]
[329580803,1718458239242,-500.0,0.00022464,3]
[329580804,1718458239253,-500.0,0.00022464,3]
[329580805,1718458239283,-500.0,0.00022464,3]
[329580806,1718458239316,-500.0,0.00022464,3]
[329580807,1718458239382,-500.0,0.00022464,3]
[329580808,1718458239407,-500.0,0.00022464,3]
[329580809,1718458239426,-500.0,0.00022464,3]
[329580810,1718458239452,-500.0,0.00022464,3]
[329580811,1718458239470,-603.41267162,0.00022464,3]
[329580812,1718458239506,-500.0,0.00022464,3]
[329580813,1718458239517,-500.0,0.00022464,3]
[329580814,1718458239542,-500.0,0.00022464,3]
[329580815,1718458239753,-500.0,0.00022464,3]
[329580816,1718458239767,-500.0,0.00022464,3]
[329580817,1718458239779,-615.11,0.00022464,3]
[329580818,1718458239803,-500.0,0.00022464,3]
[329580819,1718458239841,-1013.65,0.00022464,3]
[329580820,1718458239868,-478.7,0.00022464,3]
[329580821,1718458239879,-500.0,0.00022464,3]
[329580822,1718458239890,-500.0,0.00022464,3]
[329580823,1718458239903,-500.0,0.00022464,3]
[329580824,1718458239934,-224.05,0.00022464,3]
[329580825,1718458239963,-500.0,0.00022464,3]
[329580826,1718458239976,-595.24,0.00022464,3]
[329580827,1718458239988,-500.0,0.00022464,3]
[329580829,1718458240011,-500.0,0.00022464,3]
[329580830,1718458240023,-500.0,0.00022464,3]
[329580831,1718458240036,-500.0,0.00022464,3]
[329580832,1718458240061,-500.0,0.00022464,3]
[329580833,1718458240074,-569.92,0.00022464,3]
[329580834,1718458240113,-500.0,0.00022464,3]
[329580835,1718458240127,-500.0,0.00022464,3]
[329580836,1718458240138,-500.0,0.00022464,3]
[329580837,1718458240158,-500.0,0.00022464,3]
[329580838,1718458240177,-500.0,0.00022464,3]
[329580839,1718458240196,-500.0,0.00022464,3]
[329580840,1718458240215,-500.0,0.00022464,3]
[329580841,1718458240229,-346.00122617,0.00022464,3]
[329580842,1718458240242,-500.0,0.00022464,3]
[329580843,1718458240273,-191.5566199,0.00022464,3]
[329580844,1718458240323,-568.46,0.00022464,3]
[329580845,1718458240356,-500.0,0.00022464,3]
[329580846,1718458240370,-500.0,0.00022464,3]
[329580847,1718458240385,-500.0,0.00022464,3]
[329580848,1718458240408,-500.0,0.00022464,3]
[329580849,1718458240439,-500.0,0.00022464,3]
[329580850,1718458240469,-500.0,0.00022464,3]
[329580851,1718458240485,-500.0,0.00022464,3]
[329580852,1718458240517,-367.51936553,0.00022464,3]
[329580853,1718458240528,-500.0,0.00022464,3]
[329580854,1718458240552,-766.09,0.00022464,3]
[329580855,1718458240569,-500.0,0.00022464,3]
[329580856,1718458240582,-500.0,0.00022464,3]
[329580857,1718458240597,-500.0,0.00022464,3]
[329580858,1718458240616,-500.0,0.00022464,3]
[329580859,1718458240642,-437.0564669,0.00022464,3]
[329580860,1718458240675,-501.02,0.00022464,3]
[329580861,1718458240705,-500.0,0.00022464,3]
[329580862,1718458240749,-500.0,0.00022464,3]
[329580863,1718458240778,-500.0,0.00022464,3]
[329580864,1718458240798,-556.9,0.00022464,3]
[329580865,1718458240819,-500.0,0.00022464,3]
[329580866,1718458240837,-500.0,0.00022464,3]
[329580867,1718458240876,-500.0,0.00022464,3]
[329580868,1718458240893,-500.0,0.00022464,3]
[329580869,1718458240904,-500.0,0.00022464,3]
[329580870,1718458240929,-500.0,0.00022464,3]
[329580871,1718458240943,-947.91,0.00022464,3]
[329580872,1718458240965,-500.0,0.00022464,3]
[329580873,1718458241004,-580.76,0.00022464,3]
[329580874,1718458241043,-500.0,0.00022464,3]
[329580875,1718458241054,-500.0,0.00022464,3]
[329580876,1718458241067,-500.0,0.00022464,3]
[329580877,1718458241084,-500.0,0.00022465,2]
[329580878,1718458241100,-813.0,0.00022465,2]
[329580879,1718458241134,-500.0,0.00022465,3]
[329580880,1718458241146,-500.0,0.00022465,3]
[329580881,1718458241166,-587.73758267,0.00022465,3]
[329580882,1718458241190,-500.0,0.00022465,3]
[329580883,1718458241202,-500.0,0.00022465,3]
[329580884,1718458241217,-500.0,0.00022465,3]
[329580885,1718458241259,-500.0,0.00022465,3]
[329580886,1718458241272,-500.0,0.00022465,3]
[329580887,1718458241289,-500.0,0.00022465,3]
[329580888,1718458241312,-500.0,0.00022465,3]
[329580889,1718458241324,-500.0,0.00022465,3]
[329580890,1718458241340,-500.0,0.00022465,3]
[329580891,1718458241377,-500.0,0.00022465,3]
[329580892,1718458241395,-509.89,0.00022465,3]
[329580894,1718458241481,-500.0,0.00022465,3]
[329580896,1718458241513,-355.0,0.000226,2]
[329580898,1718458241526,-1000.0,0.000226,2]
[329580900,1718458241547,-500.0,0.00022637,3]
[329580901,1718458241560,-3117.65,0.00022637,3]
[329580904,1718458241576,-500.0,0.00022637,3]
[329580906,1718458241609,-2300.47,0.00022637,3]
[329580908,1718458241632,-215.0,0.00022639,2]
[329580910,1718458241653,-150.0,0.00022668,2]
[329580911,1718458241673,-400.0,0.000227,8]
[329580914,1718458241701,-500.0,0.00022737,3]
[329580915,1718458241725,-597.61,0.00022737,3]
[329580918,1718458241741,-500.0,0.00022737,3]
[329580921,1718458241765,-2003.96,0.00022737,3]
[329580922,1718458241781,-500.0,0.00022737,3]
[329580926,1718458241794,-500.0,0.00022737,3]
[329580929,1718458241816,-500.0,0.00022737,3]
[329580931,1718458241843,-500.0,0.00022737,3]
[329580933,1718458241882,-500.0,0.00022737,3]
[329580937,1718458241902,-500.0,0.00022738,3]
[329580940,1718458241929,-500.0,0.00022738,3]
[329580942,1718458241946,-309.72,0.00022738,3]
[329580943,1718458241958,-521.45410623,0.00022738,3]
[329580944,1718458241969,-500.0,0.00022738,3]
[329580946,1718458241989,-500.0,0.00022738,3]
[329580947,1718458242000,-500.0,0.00022738,3]
[329580948,1718458242016,-500.0,0.00022738,3]
[329580949,1718458242028,-500.0,0.00022738,3]
[329580952,1718458242052,-500.0,0.00022738,3]
[329580955,1718458242085,-500.0,0.00022738,3]
[329580957,1718458242103,-500.0,0.00022738,3]
[329580959,1718458242152,-500.0,0.00022738,3]
[329580961,1718458242165,-500.0,0.00022738,3]
[329580962,1718458242179,-500.0,0.00022738,3]
[329580963,1718458242192,-500.0,0.00022738,3]
[329580965,1718458242208,-500.0,0.00022738,3]
[329580968,1718458242230,-500.0,0.00022738,3]
[329580969,1718458242244,-500.0,0.00022738,3]
[329580971,1718458242264,-500.0,0.00022738,3]
[329580973,1718458242293,-500.0,0.00022738,3]
[329580975,1718458242314,-500.0,0.00022738,3]
[329580977,1718458242340,-500.0,0.00022738,3]
[329580979,1718458242353,-500.0,0.00022738,3]
[329580982,1718458242420,-500.0,0.00022738,3]
[329580984,1718458242436,-500.0,0.00022738,3]
[329580986,1718458242452,-500.0,0.00022738,3]
[329580988,1718458242466,-500.0,0.00022738,3]
[329580990,1718458242484,-500.0,0.00022738,3]
[329580992,1718458242495,-500.0,0.00022738,3]
[329580995,1718458242507,-500.0,0.00022738,3]
[329580996,1718458242524,-608.54,0.00022738,3]
[329580999,1718458242539,-500.0,0.00022738,3]
[329581001,1718458242562,-500.0,0.00022738,3]
[329581003,1718458242573,-367.55692923,0.00022738,3]
[329581005,1718458242602,-500.0,0.00022738,3]
[329581006,1718458242632,-500.0,0.00022738,3]
[329581008,1718458242651,-150.0,0.00022738,3]
[329581010,1718458242662,-640.40777691,0.00022738,3]
[329581013,1718458242693,-500.0,0.00022738,3]
[329581014,1718458242712,-500.0,0.00022738,3]
[329581016,1718458242741,-500.0,0.00022738,3]
[329581018,1718458242753,-500.0,0.00022738,3]
[329581020,1718458242768,-500.0,0.00022738,3]
[329581021,1718458242783,-296.73,0.00022738,3]
[329581023,1718458242796,-500.0,0.00022738,3]
[329581025,1718458242815,-500.0,0.00022738,3]
[329581027,1718458242852,-500.0,0.00022738,3]
[329581029,1718458242866,-500.0,0.00022738,3]
[329581031,1718458242882,-381.87160783,0.00022738,3]
[329581032,1718458242903,-476.24,0.00022738,3]
[329581034,1718458242916,-500.0,0.00022738,3]
[329581036,1718458242954,-500.0,0.00022738,3]
[329581037,1718458242966,-1013.65,0.00022738,3]
[329581039,1718458242988,-500.0,0.00022738,3]
[329581040,1718458243007,-500.0,0.00022738,3]
[329581042,1718458243041,-500.0,0.00022738,3]
[329581044,1718458243058,-500.0,0.00022738,3]
[329581047,1718458243097,-595.24,0.00022738,3]
[329581050,1718458243154,-500.0,0.00022738,3]
[329581052,1718458243197,-500.0,0.00022738,3]
[329581053,1718458243211,-500.0,0.00022738,3]
[329581055,1718458243231,-500.0,0.00022738,3]
[329581057,1718458243243,-500.0,0.00022738,3]
[329581059,1718458243260,-500.0,0.00022738,3]
[329581061,1718458243287,-500.0,0.00022738,3]
[329581064,1718458243314,-500.0,0.00022738,3]
[329581066,1718458243328,-500.0,0.00022738,3]
[329581067,1718458243341,-500.0,0.00022738,3]
[329581070,1718458243378,-500.0,0.00022738,3]
[329581076,1718458243424,-500.0,0.00022738,3]
[329581081,1718458243449,-500.0,0.00022738,3]
[329581084,1718458243467,-568.46,0.00022738,3]
[329581085,1718458243480,-500.0,0.00022738,3]
[329581087,1718458243521,-500.0,0.00022738,3]
[329581089,1718458243533,-500.0,0.00022738,3]
[329581090,1718458243560,-500.0,0.00022738,3]
[329581092,1718458243574,-500.0,0.00022738,3]
[329581094,1718458243586,-500.0,0.00022738,3]
[329581097,1718458243599,-500.0,0.00022738,3]
[329581099,1718458243629,-500.0,0.00022738,3]
[329581102,1718458243655,-766.09,0.00022738,3]
[329581104,1718458243671,-500.0,0.00022738,3]
[329581106,1718458243701,-500.0,0.00022738,3]
[329581108,1718458243730,-500.0,0.00022738,3]
[329581110,1718458243753,-500.0,0.00022738,3]
[329581111,1718458243779,-501.02,0.00022738,3]
[329581113,1718458243805,-500.0,0.00022738,3]
[329581115,1718458243836,-500.0,0.00022738,3]
[329581117,1718458243857,-500.0,0.00022738,3]
[329581120,1718458243874,-500.0,0.00022738,3]
[329581122,1718458243896,-191.81467233,0.00022738,3]
[329581124,1718458243931,-500.0,0.00022738,3]
[329581126,1718458243947,-500.0,0.00022738,3]
[329581128,1718458243964,-500.0,0.00022738,3]
[329581131,1718458243986,-947.91,0.00022738,3]
[329581133,1718458244001,-500.0,0.00022738,3]
[329581134,1718458244026,-580.76,0.00022738,3]
[329581137,1718458244076,-219.02664354,0.00022738,3]
[329581138,1718458244113,-468.88,0.00022738,3]
[329581140,1718458244135,-500.0,0.00022738,3]
[329581142,1718458244165,-500.0,0.00022739,3]
[329581145,1718458244175,-500.0,0.00022739,3]
[329581147,1718458244186,-311.23993979,0.00022739,3]
[329581148,1718458244199,-500.0,0.00022739,3]
[329581151,1718458244221,-500.0,0.00022739,3]
[329581153,1718458244234,-351.42979277,0.00022739,3]
[329581155,1718458244252,-500.0,0.00022739,3]
[329581156,1718458244268,-500.0,0.00022739,3]
[329581159,1718458244284,-500.0,0.00022739,3]
[329581160,1718458244296,-500.0,0.00022739,3]
[329581163,1718458244328,-500.0,0.00022739,3]
[329581165,1718458244341,-500.0,0.00022739,3]
[329581167,1718458244354,-509.89,0.00022739,3]
[329581170,1718458244408,-500.0,0.00022739,3]
[329581171,1718458244436,-3273.74150258,0.00022769,3]
[329581173,1718458244451,-800.0,0.000228,8]
[329581175,1718458244470,-500.0,0.00022815,2]
[329581178,1718458244502,-200.0,0.00022815,2]
[329581180,1718458244514,-500.0,0.00022816,2]
[329581181,1718458244527,-500.0,0.00022816,2]
[329581183,1718458244553,-500.0,0.00022816,2]
[329581185,1718458244567,-200.0,0.00022816,2]
[329581187,1718458244586,-20000.0,0.0002289,2]
[329581190,1718458244636,-1039.513465,0.000229,2]
[329581192,1718458244673,-1620.659468,0.000229,2]
[329581193,1718458244693,-181.27433181,0.000229,2]
[329581195,1718458244716,-2117.46249587,0.000229,2]
[329581197,1718458244736,-179.39771078,0.000229,2]
[329581199,1718458244752,-1300.0,0.000229,8]
[329581201,1718458244772,-500.0,0.00022911,3]
[329581202,1718458244796,-3117.65,0.00022911,3]
[329581203,1718458244811,-500.0,0.00022911,3]
[329581205,1718458244824,-2300.47,0.00022911,3]
[329581207,1718458244840,-886.17267846,0.00022928,2]
[329581208,1718458244855,-379.39,0.00022935,2]
[329581210,1718458244882,-203.94857317,0.0002299,2]
[329581212,1718458244909,-7597.5308046,0.00022996,2]
[329581213,1718458244933,-21914.0836434,0.00022996,2]
[329581215,1718458244945,-853.3071609,0.00022996,2]
[329581218,1718458244958,-393.96440092,0.00022998,2]
[329581221,1718458244983,-277.19806606,0.00022998,2]
[329581223,1718458244997,-500.0,0.00022998,2]
[329581226,1718458245026,-150.01,0.00022999,2]
[329581229,1718458245058,-5901.39666759,0.00022999,2]
[329581230,1718458245083,-557.0,0.00023,2]
[329581232,1718458245096,-60774.65809415,0.00023,7]
[329581244,1718458245357,-6299.4,0.00023,7]
[329581249,1718458245440,-1414.36815207,0.00023,7]
[329581251,1718458245454,-679.73,0.00023,7]
[329581253,1718458245468,-2001.76069057,0.00023,7]
[329581277,1718458245900,-1067.0,0.00017518,2]
[329581278,1718458245929,-616.0,0.00017518,2]
[329581279,1718458245942,-1067.0,0.00020518,2]
[329581280,1718458245989,-616.0,0.00020518,2]
[329581281,1718458246008,-44.0,0.00022887,2]
[329581282,1718458246056,-300.30211226,0.00022887,2]
[329581283,1718458246080,-80165.76011642,0.00023,7]
[329581284,1718458246109,-313.999999,0.00023,7]
[329581285,1718458246140,-799.56334722,0.00023,7]
[329581286,1718458246356,-865.86350875,0.0002,2]
[329581287,1718458246373,-451.39690723,0.00023,7]
[329581288,1718458246410,-3223.3845799,0.00023,7]
[329581289,1718458246425,-533.85999999,0.00023,7]
[329581301,1718458247948,-442.0,0.00017518,2]
[329581304,1718458247965,-442.0,0.00020518,2]
[329581306,1718458247983,-500.0,0.0002219,3]
[329581308,1718458248017,-970.21007583,0.00023,7]
[329581310,1718458248037,-1223.73688367,0.00023,7]
[329581312,1718458248051,-366.29181608,0.00023,7]
[329581314,1718458248078,-907.5,0.00023,7]
[329581316,1718458248092,-11224.66423375,0.00023,7]
[329581325,1718458248236,-500.0,0.00022464,3]
[329581327,1718458248286,-511.54812854,0.00023,7]
[329581329,1718458248317,-343.54510759,0.00023,7]
[329581341,1718458248677,-514.9686391,0.00022738,3]
[329581344,1718458248708,-126.96302889,0.00023,7]
[329581371,1718458249041,-719.95798759,0.00017518,2]
[329581372,1718458249059,-661.1649,0.00017518,2]
[329581373,1718458249088,-270.87711241,0.00017518,2]
[329581374,1718458249103,-7054.51584762,0.00023,7]
[329581375,1718458249273,-1048.15420428,0.00017518,2]
[329581376,1718458249308,-500.0,0.00022189,3]
[329581377,1718458249321,-3478.13507022,0.00023,7]
[329581378,1718458249343,-6005.19479998,0.00023,7]
[329581379,1718458249364,-67339.19935778,0.00023,7]
[329581380,1718458249392,-142359.12829856,0.00023,7]
[329581381,1718458249423,-560.52287682,0.00023,7]
[329581382,1718458249589,-35018.3906703,0.00017518,2]
[329581383,1718458249606,-406.673,0.00020518,2]
[329581384,1718458249621,-500.0,0.00022463,3]
[329581385,1718458249633,-5849.66071266,0.00023,7]
[329581386,1718458249659,-4898.47719609,0.00023,7]
[329581387,1718458250260,-500.0,0.00022189,3]
[329581388,1718458250274,-500.0,0.00022463,3]
[329581389,1718458250291,-500.0,0.00022737,3]
[329581390,1718458250304,-12867.40372044,0.00023,7]
[329581425,1718458620433,1422.35557252,0.00012,30]
[329581442,1718459236262,-300.6704897,0.00013294,2]
[329581443,1718459247264,-156.52931915,0.00013294,2]
[329581444,1718459247517,-682.18246034,0.00013294,2]
[329581445,1718459247605,-457.18768046,0.00013297,2]
[329581446,1718459247648,-300.0,0.000137,5]
[329581447,1718459247689,-600.0,0.000138,5]
[329581448,1718459247771,-900.0,0.000139,5]
[329581449,1718459247803,-369.13,0.0001394,2]
[329581450,1718459247840,-150.0,0.00013989,2]
[329581451,1718459247888,-2969.29475949,0.0001399,2]
[329581452,1718459247920,-152.22,0.0001399,2]
[329581453,1718459247959,-152.22,0.0001399,2]
[329581454,1718459248017,-152.22,0.0001399,2]
[329581455,1718459248046,-203.94857317,0.0001399,2]
[329581456,1718459248080,-760.48,0.0001399,3]
[329581457,1718459248119,-185.99046895,0.00013998,2]
[329581458,1718459248203,-195.79238693,0.00013998,2]
[329581459,1718459248237,-125.80399556,0.00013998,2]
[329581484,1718459434139,-209.70748719,0.0001329,2]
[329581486,1718459434172,-59.29251331,0.00013292,2]
[329581489,1718459434204,-134.00530058,0.00013292,2]
[329581490,1718459434232,-158.9647594,0.00013898,2]
[329581491,1718459434258,-152.22,0.0001399,2]
[329581492,1718459434283,-152.22,0.0001399,2]
[329581493,1718459434312,-18.09961159,0.00013998,2]
[329581494,1718459434341,-1223.81438073,0.00013998,2]
[329581495,1718459434392,-158.39893901,0.00013998,2]
[329581496,1718459434409,-1000.0,0.00013999,2]
[329581497,1718459434468,-150.0,0.00013999,2]
[329581498,1718459434508,-4658.98668026,0.00014,2]
[329581499,1718459434808,-5610.0688,0.00014,2]
[329581500,1718459434837,-3943.51369521,0.00014,2]
[329581501,1718459434860,-300.0,0.00014,2]
[329581502,1718459434899,-308.807424,0.00014,2]
[329581503,1718459435575,-833.36001832,0.00014,2]
[329581504,1718459435591,-537.12016184,0.00014,2]
[329581505,1718459435617,-3188.38584379,0.00014,2]
[329581506,1718459435650,-299.66504719,0.00014,2]
[329581507,1718459435695,-3125.00006,0.00014,2]
[329581508,1718459435730,-3000.0,0.00014,2]
[329581509,1718459435759,-2816.99074986,0.00014,2]
[329581510,1718459435776,-3070.85958003,0.00014,2]
[329581520,1718459440780,-886.6124525,0.00014,2]
[329581521,1718459440794,-462037.16885885,0.00014,2]
[329581522,1718459441341,-5455.43200001,0.00014,2]
[329581523,1718459441356,-62753.46377156,0.00014,2]
[329581524,1718459441400,-118002.93816387,0.00014,2]
[329581540,1718459444496,-542.76931822,0.00014,2]
[329581541,1718459444557,-664.35000011,0.00014,2]
[329581542,1718459444581,-177999.12935581,0.00014,2]
[329581543,1718459444622,-22820.80713084,0.00014,2]
[329581544,1718459444641,-5177.37174541,0.00014,2]
[329581545,1718459445060,-41211.93050314,0.00014,2]
[329581547,1718459445103,-500.0,0.00014,2]
[329581550,1718459445145,-380.1,0.00014,2]
[329581551,1718459445175,-1857.92074004,0.00014,2]
[329581553,1718459445208,-356.55,0.00014,2]
[329581566,1718459445753,-3270.35744937,0.00014,2]
[329581567,1718459445805,-7214.08965425,0.00014,2]
[329581650,1718459455171,-193.18760792,0.00013999,2]
[329581651,1718459455182,-159.91478728,0.00014,2]
[329581652,1718459455201,-11664.0,0.00014,2]
[329581653,1718459455841,-204.34183637,0.00013999,2]
[329581654,1718459455856,-136179.17237593,0.00014,2]
[329581655,1718459455874,-3424.21,0.00014,2]
[329581656,1718459455889,-547.84176427,0.00014,2]
[329581657,1718459456368,-538.51319159,0.00014,2]
[329581658,1718459456386,-34773.48897222,0.00014,2]
[329581659,1718459456401,-42935.87170144,0.00014,2]
[329581660,1718459456422,-623.61878337,0.00014,2]
[329581661,1718459456437,-14213.0,0.00014,2]
[329581662,1718459456461,-72285.10926254,0.00014,2]
[329581671,1718459479012,631.36,0.00011,2]
[329581685,1718460337990,380.65,0.00010805,2]
[329581686,1718460432175,-453.76515583,0.00011563,2]
[329581687,1718460432220,-2370.8826794,0.00011564,2]
[329581688,1718460432267,-1172.18291611,0.00011565,2]
[329581689,1718460441144,-531.97150044,0.00011564,2]
[329581690,1718460441174,-992.66559667,0.00011565,2]
[329581691,1718460443333,-938.38561731,0.00011565,2]
[329581692,1718460443390,-150.0,0.00011568,2]
[329581693,1718460443444,-729.0,0.00011571,2]
[329581694,1718460443501,-10.41684261,0.00012564,2]
[329581706,1718460633622,-453.37616824,0.00012334,2]
[329581707,1718460633635,-139.58315739,0.00012564,2]
[329581708,1718460633647,-521.28788434,0.00012575,2]
[329581709,1718460633672,-3521.12211566,0.00012575,2]
[329581710,1718460633691,-474.42320742,0.00012656,2]
[329581711,1718460633729,-522.55327531,0.00012656,2]
[329581712,1718460633951,-1286.32241983,0.00012656,2]
[329581713,1718460633967,-1472.09282741,0.00012656,2]
[329581714,1718460633985,-8572.19418535,0.00012656,2]
[329581715,1718460634005,-3450.21408468,0.00012656,2]
[329581716,1718460634023,-200.0,0.00012663,2]
[329581717,1718460634034,-1875.01,0.00012683,2]
[329581718,1718460634061,-464.36,0.00012685,2]
[329581719,1718460634073,-167.55,0.00012777,2]
[329581720,1718460634084,-491.86,0.00012777,2]
[329581721,1718460634100,-3484.37,0.00012781,2]
[329581722,1718460634128,-108.92547831,0.00012793,2]
[329581723,1718460634141,-341.48088377,0.00012793,2]
[329581724,1718460634280,-549.59363792,0.00012793,2]
[329581725,1718460634291,-371.85,0.00012884,2]
[329581726,1718460634307,-250.0,0.00012886,2]
[329581727,1718460634325,-150.0,0.00012909,2]
[329581728,1718460634347,-390.38775429,0.0001291,2]
[329581729,1718460634366,-698.32224571,0.0001291,2]
[329581730,1718460634392,-999.99,0.0001291,2]
[329581731,1718460634422,-224.99,0.0001291,2]
[329581732,1718460634437,-179.74,0.0001291,2]
[329581733,1718460634461,-535.67,0.0001291,2]
[329581734,1718460634494,-380.65,0.00013069,2]
[329581735,1718460634505,-881.25,0.00013172,2]
[329581736,1718460634528,-322.08,0.00013172,2]
[329581737,1718460634564,-466.6,0.00013172,2]
[329581738,1718460634578,-174.42,0.00013381,2]
[329581739,1718460634588,-2747.1,0.00013447,2]
[329581740,1718460634601,-954.60139076,0.00013689,2]
[329581741,1718460634640,-166.45,0.00013699,2]
[329581742,1718460634675,-15590.23,0.00013699,2]
[329581743,1718460634691,-200.0,0.00013699,2]
[329581744,1718460634703,-1086.11,0.00013699,2]
[329581745,1718460634713,-500.0,0.000138,5]
[329581746,1718460634726,-499.99,0.00013819,2]
[329581747,1718460634739,-679.65064595,0.00013858,2]
[329581748,1718460634765,-451.02185696,0.00013859,2]
[329581749,1718460634781,-3099.8304553,0.00013859,2]
[329581750,1718460634841,-30246.12748969,0.0001386,2]
[329581751,1718460634876,-389.05887,0.0001386,2]
[329581752,1718460634888,-752.55976757,0.000139,2]
[329581753,1718460634898,-169.27129522,0.000139,2]
[329581754,1718460634909,-1100.0,0.000139,5]
[329581755,1718460634920,-291.75654237,0.00013958,2]
[329581756,1718460634931,-2565.8958571,0.00013958,2]
[329581757,1718460634972,-152.27,0.0001399,2]
[329581758,1718460634996,-175.33494798,0.00013995,2]